[Event "*** Qualifier 2: Titled Tuesday 3|2 Blitz"]
[Site "Chess.com"]
[Date "2017.04.11"]
[Round "5"]
[White "sergiochess83"]
[Black "johnathan113"]
[Result "1-0"]
[WhiteElo "2602"]
[BlackElo "2427"]
[TimeControl "180+2"]
[EndTime "14:03:13 PDT"]
[Termination "sergiochess83 won by resignation"]

1. e4 {[%clk 0:03:02]} 1... c5 {[%clk 0:02:59.6]} 2. Nf3 {[%clk 0:03:02.6]} 2...
g6 {[%clk 0:02:58.9]} 3. d4 {[%clk 0:03:00.2]} 3... cxd4 {[%clk 0:03:00.8]} 4.
Qxd4 {[%clk 0:03:01.4]} 4... Nf6 {[%clk 0:03:01.8]} 5. Nc3 {[%clk 0:03:01.7]}
5... Nc6 {[%clk 0:03:02.9]} 6. Qa4 {[%clk 0:03:02.6]} 6... Ng4 {[%clk 0:03:04]}
7. h3 {[%clk 0:02:43.6]} 7... Nge5 {[%clk 0:03:04.1]} 8. Nxe5 {[%clk 0:02:40.9]}
8... Nxe5 {[%clk 0:03:06]} 9. Be3 {[%clk 0:02:19.6]} 9... Bg7 {[%clk 0:03:05.5]}
10. Bd4 {[%clk 0:02:20]} 10... O-O {[%clk 0:03:04.8]} 11. f4 {[%clk 0:02:20.7]}
11... Nc6 {[%clk 0:03:05.3]} 12. Bxg7 {[%clk 0:02:21.7]} 12... Kxg7 {[%clk
0:03:07.2]} 13. O-O-O {[%clk 0:02:23.6]} 13... d6 {[%clk 0:03:06.4]} 14. Bb5
{[%clk 0:02:21.1]} 14... Bd7 {[%clk 0:03:04]} 15. Bxc6 {[%clk 0:02:20.6]} 15...
Bxc6 {[%clk 0:02:59.3]} 16. Qd4+ {[%clk 0:02:21]} 16... Kg8 {[%clk 0:02:58.7]}
17. h4 {[%clk 0:02:12]} 17... Qb6 {[%clk 0:02:42.2]} 18. Qd2 {[%clk 0:02:11.9]}
18... Qc5 {[%clk 0:02:11]} 19. h5 {[%clk 0:02:07.7]} 19... b5 {[%clk 0:02:09.3]}
20. f5 {[%clk 0:01:55.8]} 20... gxf5 {[%clk 0:01:59.4]} 21. Qg5+ {[%clk
0:01:52.2]} 21... Kh8 {[%clk 0:02:00.3]} 22. Qxe7 {[%clk 0:01:54.1]} 22... Qe5
{[%clk 0:01:36.5]} 23. Qxd6 {[%clk 0:01:46.6]} 23... Qxd6 {[%clk 0:01:36.4]} 24.
Rxd6 {[%clk 0:01:48.5]} 24... Bxe4 {[%clk 0:01:38.2]} 25. Rf1 {[%clk 0:01:48.7]}
25... Bxg2 {[%clk 0:01:32.3]} 26. Rxf5 {[%clk 0:01:48.1]} 26... b4 {[%clk
0:01:33.4]} 27. Nd5 {[%clk 0:01:49.3]} 27... Rad8 {[%clk 0:01:22.1]} 28. Rxd8
{[%clk 0:01:40]} 28... Rxd8 {[%clk 0:01:23.1]} 29. Nxb4 {[%clk 0:01:41.6]} 29...
Kg7 {[%clk 0:01:19.9]} 30. Rg5+ {[%clk 0:01:42]} 1-0

[Event "*** Qualifier 2: Titled Tuesday 3|2 Blitz"]
[Site "Chess.com"]
[Date "2017.04.11"]
[Round "5"]
[White "ruvat"]
[Black "FearNoEvil12"]
[Result "1-0"]
[WhiteElo "2211"]
[BlackElo "2078"]
[TimeControl "180+2"]
[EndTime "14:03:13 PDT"]
[Termination "ruvat won by resignation"]

1. d4 {[%clk 0:02:56.4]} 1... b5 {[%clk 0:03:00.3]} 2. e4 {[%clk 0:02:56]} 2...
a6 {[%clk 0:03:01.3]} 3. Bd3 {[%clk 0:02:56.8]} 3... Bb7 {[%clk 0:03:02.3]} 4.
Nf3 {[%clk 0:02:57.9]} 4... e6 {[%clk 0:03:03.8]} 5. O-O {[%clk 0:02:58.6]} 5...
Nf6 {[%clk 0:03:04.8]} 6. Qe2 {[%clk 0:02:58.8]} 6... d6 {[%clk 0:03:05.1]} 7.
c3 {[%clk 0:02:55.4]} 7... Nbd7 {[%clk 0:03:05.5]} 8. Nbd2 {[%clk 0:02:55.4]}
8... Rg8 {[%clk 0:03:04.8]} 9. Re1 {[%clk 0:02:55.8]} 9... g5 {[%clk 0:03:05.5]}
10. Nf1 {[%clk 0:02:48.3]} 10... g4 {[%clk 0:03:04.9]} 11. N3d2 {[%clk
0:02:48.6]} 11... h5 {[%clk 0:02:59.6]} 12. a4 {[%clk 0:02:42.7]} 12... bxa4
{[%clk 0:02:59.3]} 13. Rxa4 {[%clk 0:02:40.5]} 13... h4 {[%clk 0:02:57.5]} 14.
Bxa6 {[%clk 0:02:35.4]} 14... Rxa6 {[%clk 0:02:50.7]} 15. Rxa6 {[%clk
0:02:35.3]} 15... Bxa6 {[%clk 0:02:46.5]} 16. Qxa6 {[%clk 0:02:36.7]} 16... g3
{[%clk 0:02:47.3]} 17. hxg3 {[%clk 0:02:32.7]} 17... hxg3 {[%clk 0:02:47.9]} 18.
Nxg3 {[%clk 0:02:33.6]} 18... Ng4 {[%clk 0:02:47.5]} 19. Nf3 {[%clk 0:02:25.5]}
19... Qf6 {[%clk 0:02:19.1]} 20. Qc8+ {[%clk 0:02:23.8]} 20... Ke7 {[%clk
0:02:18.9]} 21. Qxc7 {[%clk 0:02:24.1]} 21... Bh6 {[%clk 0:02:03.2]} 22. e5
{[%clk 0:01:54.8]} 22... dxe5 {[%clk 0:01:21.5]} 23. dxe5 {[%clk 0:01:56.7]}
23... Qg6 {[%clk 0:01:19.3]} 24. Qd6+ {[%clk 0:01:46.4]} 24... Ke8 {[%clk
0:01:18.2]} 25. Bxh6 {[%clk 0:01:41.6]} 25... Qxh6 {[%clk 0:01:18.3]} 26. Ra1
{[%clk 0:01:41.7]} 26... f5 {[%clk 0:00:34.5]} 27. Ra8+ {[%clk 0:01:37.3]} 27...
Kf7 {[%clk 0:00:34.2]} 28. Qxd7+ {[%clk 0:01:38.1]} 1-0

[Event "*** Qualifier 2: Titled Tuesday 3|2 Blitz"]
[Site "Chess.com"]
[Date "2017.04.11"]
[Round "5"]
[White "DiogenesSinopeus"]
[Black "rst2003"]
[Result "1-0"]
[WhiteElo "2283"]
[BlackElo "2113"]
[TimeControl "180+2"]
[EndTime "14:03:52 PDT"]
[Termination "DiogenesSinopeus won by checkmate"]

1. d4 {[%clk 0:03:02]} 1... Nf6 {[%clk 0:03:00.3]} 2. c4 {[%clk 0:03:03]} 2...
g6 {[%clk 0:03:01.6]} 3. Nc3 {[%clk 0:03:04.3]} 3... Bg7 {[%clk 0:03:03]} 4. e4
{[%clk 0:03:05.7]} 4... d6 {[%clk 0:03:04.6]} 5. Nf3 {[%clk 0:03:07.2]} 5... O-O
{[%clk 0:03:06.1]} 6. Be2 {[%clk 0:03:08.8]} 6... e5 {[%clk 0:03:07.3]} 7. dxe5
{[%clk 0:03:10.7]} 7... dxe5 {[%clk 0:03:07.8]} 8. Qxd8 {[%clk 0:03:12.6]} 8...
Rxd8 {[%clk 0:03:08.6]} 9. Nd5 {[%clk 0:03:13.2]} 9... Nxd5 {[%clk 0:03:05.1]}
10. cxd5 {[%clk 0:03:15.1]} 10... c6 {[%clk 0:03:06.1]} 11. Bc4 {[%clk
0:03:16.1]} 11... b5 {[%clk 0:03:01.1]} 12. Bb3 {[%clk 0:03:15.8]} 12... a5
{[%clk 0:03:00.6]} 13. Bg5 {[%clk 0:03:16.4]} 13... Re8 {[%clk 0:02:53.8]} 14.
a4 {[%clk 0:03:17.3]} 14... bxa4 {[%clk 0:02:47]} 15. Bxa4 {[%clk 0:03:19.2]}
15... Bd7 {[%clk 0:02:47.9]} 16. d6 {[%clk 0:02:35.1]} 16... Na6 {[%clk
0:02:42.2]} 17. Be3 {[%clk 0:02:08.7]} 17... Rab8 {[%clk 0:02:20.2]} 18. b3
{[%clk 0:02:01.7]} 18... Bf8 {[%clk 0:01:54.3]} 19. Ke2 {[%clk 0:01:58]} 19...
f6 {[%clk 0:01:39.3]} 20. Rhd1 {[%clk 0:01:54]} 20... Kf7 {[%clk 0:01:16.8]} 21.
Nd2 {[%clk 0:01:53.4]} 21... Be6 {[%clk 0:00:50.9]} 22. Nc4 {[%clk 0:01:35.8]}
22... Bxc4+ {[%clk 0:00:42.4]} 23. bxc4 {[%clk 0:01:37.7]} 23... Nb4 {[%clk
0:00:28.9]} 24. c5 {[%clk 0:01:32.4]} 24... Red8 {[%clk 0:00:19.4]} 25. Bb3+
{[%clk 0:01:33.3]} 25... Kg7 {[%clk 0:00:20.6]} 26. Rxa5 {[%clk 0:01:34]} 26...
f5 {[%clk 0:00:20.3]} 27. Ra7+ {[%clk 0:01:29.3]} 27... Kf6 {[%clk 0:00:19.8]}
28. Rf7# {[%clk 0:01:29.3]} 1-0

[Event "*** Qualifier 2: Titled Tuesday 3|2 Blitz"]
[Site "Chess.com"]
[Date "2017.04.11"]
[Round "5"]
[White "evgenyermolaev"]
[Black "evgenysharapov"]
[Result "1-0"]
[WhiteElo "2376"]
[BlackElo "2285"]
[TimeControl "180+2"]
[EndTime "14:03:57 PDT"]
[Termination "evgenyermolaev won by checkmate"]

1. e4 {[%clk 0:03:02]} 1... c5 {[%clk 0:03:00.4]} 2. Nf3 {[%clk 0:03:02.3]} 2...
d6 {[%clk 0:03:00.5]} 3. d4 {[%clk 0:03:03]} 3... cxd4 {[%clk 0:03:01.1]} 4.
Nxd4 {[%clk 0:03:04.2]} 4... Nf6 {[%clk 0:03:01.4]} 5. Nc3 {[%clk 0:03:05.1]}
5... Nc6 {[%clk 0:03:01.6]} 6. Bg5 {[%clk 0:03:03.8]} 6... Qb6 {[%clk
0:03:01.6]} 7. Nb3 {[%clk 0:02:58.7]} 7... e6 {[%clk 0:03:01.8]} 8. Qd2 {[%clk
0:02:57]} 8... Be7 {[%clk 0:03:02]} 9. O-O-O {[%clk 0:02:53.8]} 9... O-O {[%clk
0:03:02.2]} 10. Be3 {[%clk 0:02:45.3]} 10... Qc7 {[%clk 0:03:02]} 11. f3 {[%clk
0:02:27.8]} 11... a6 {[%clk 0:03:01.7]} 12. g4 {[%clk 0:02:24.8]} 12... b5
{[%clk 0:03:01.5]} 13. g5 {[%clk 0:02:22.6]} 13... Nd7 {[%clk 0:03:02.1]} 14. h4
{[%clk 0:02:22.1]} 14... Nb6 {[%clk 0:03:02.1]} 15. Qf2 {[%clk 0:02:16.8]} 15...
Rb8 {[%clk 0:02:58.1]} 16. g6 {[%clk 0:01:54.5]} 16... b4 {[%clk 0:02:57.3]} 17.
gxh7+ {[%clk 0:01:45]} 17... Kh8 {[%clk 0:02:57.3]} 18. Ne2 {[%clk 0:01:29.2]}
18... a5 {[%clk 0:02:56.5]} 19. Ned4 {[%clk 0:01:16.3]} 19... a4 {[%clk
0:02:54.7]} 20. Nxc6 {[%clk 0:01:12.1]} 20... Qxc6 {[%clk 0:02:41.3]} 21. Nd4
{[%clk 0:01:13]} 21... Qc7 {[%clk 0:02:39.6]} 22. Nb5 {[%clk 0:01:07.9]} 22...
Qc6 {[%clk 0:02:38.6]} 23. Nd4 {[%clk 0:01:03.3]} 23... Qc7 {[%clk 0:02:39]} 24.
Nb5 {[%clk 0:00:36]} 24... Qc6 {[%clk 0:02:38.6]} 25. Nd4 {[%clk 0:00:30.9]}
25... Qc7 {[%clk 0:02:38.8]} 26. Kb1 {[%clk 0:00:32.2]} 26... Nc4 {[%clk
0:02:32.3]} 27. Bxc4 {[%clk 0:00:30.7]} 27... Qxc4 {[%clk 0:02:32.5]} 28. b3
{[%clk 0:00:32.2]} 28... Qa6 {[%clk 0:02:27]} 29. h5 {[%clk 0:00:29.3]} 29... e5
{[%clk 0:02:13.3]} 30. h6 {[%clk 0:00:23.7]} 30... g6 {[%clk 0:02:11.7]} 31. Nf5
{[%clk 0:00:18.4]} 31... gxf5 {[%clk 0:02:10.1]} 32. Qg2 {[%clk 0:00:19.7]}
32... Bf6 {[%clk 0:02:07.1]} 33. Rdg1 {[%clk 0:00:20.5]} 33... Kxh7 {[%clk
0:02:06.3]} 34. Qg7+ {[%clk 0:00:21.2]} 34... Bxg7 {[%clk 0:02:04.3]} 35. hxg7+
{[%clk 0:00:23.1]} 35... Kg8 {[%clk 0:02:04.6]} 36. Rh8# {[%clk 0:00:25]} 1-0

[Event "*** Qualifier 2: Titled Tuesday 3|2 Blitz"]
[Site "Chess.com"]
[Date "2017.04.11"]
[Round "5"]
[White "Buffy7"]
[Black "ehrenfeld"]
[Result "1-0"]
[WhiteElo "2522"]
[BlackElo "2322"]
[TimeControl "180+2"]
[EndTime "14:04:06 PDT"]
[Termination "Buffy7 won by resignation"]

1. d4 {[%clk 0:03:02]} 1... Nf6 {[%clk 0:03:00]} 2. c4 {[%clk 0:03:03.1]} 2...
e6 {[%clk 0:03:01.1]} 3. Nf3 {[%clk 0:03:03.7]} 3... Bb4+ {[%clk 0:03:01.7]} 4.
Nbd2 {[%clk 0:03:01.8]} 4... d6 {[%clk 0:03:01.7]} 5. Qc2 {[%clk 0:02:59]} 5...
Nbd7 {[%clk 0:03:00]} 6. g3 {[%clk 0:02:53.1]} 6... O-O {[%clk 0:02:58.5]} 7.
Bg2 {[%clk 0:02:54]} 7... e5 {[%clk 0:02:59.4]} 8. a3 {[%clk 0:02:46.9]} 8...
Bxd2+ {[%clk 0:02:57.2]} 9. Bxd2 {[%clk 0:02:48.8]} 9... Re8 {[%clk 0:02:51.6]}
10. dxe5 {[%clk 0:02:38.4]} 10... dxe5 {[%clk 0:02:52.1]} 11. Bc3 {[%clk
0:02:38.3]} 11... a5 {[%clk 0:02:36.3]} 12. b3 {[%clk 0:02:24.8]} 12... Qe7
{[%clk 0:02:21.3]} 13. O-O {[%clk 0:02:19.1]} 13... e4 {[%clk 0:01:56]} 14. Nd4
{[%clk 0:02:15.2]} 14... Nf8 {[%clk 0:01:42.6]} 15. b4 {[%clk 0:01:53.7]} 15...
axb4 {[%clk 0:01:39.3]} 16. axb4 {[%clk 0:01:55.6]} 16... Rxa1 {[%clk
0:01:39.9]} 17. Rxa1 {[%clk 0:01:57.5]} 17... c5 {[%clk 0:01:36.5]} 18. bxc5
{[%clk 0:01:36.1]} 18... Qxc5 {[%clk 0:01:35.4]} 19. Qa4 {[%clk 0:01:37.4]}
19... h5 {[%clk 0:01:13.2]} 20. Nb3 {[%clk 0:01:37.3]} 20... Qc6 {[%clk
0:00:40.5]} 21. Qxc6 {[%clk 0:01:36.6]} 21... bxc6 {[%clk 0:00:41.7]} 22. Bxf6
{[%clk 0:01:34.6]} 22... gxf6 {[%clk 0:00:42]} 23. Ra8 {[%clk 0:01:32.4]} 23...
f5 {[%clk 0:00:38.9]} 24. Bh3 {[%clk 0:01:23.1]} 24... Bd7 {[%clk 0:00:19]} 25.
Rxe8 {[%clk 0:01:22.9]} 25... Bxe8 {[%clk 0:00:19.9]} 26. Bxf5 {[%clk
0:01:24.4]} 26... e3 {[%clk 0:00:21.2]} 27. f4 {[%clk 0:01:24.2]} 27... Kg7
{[%clk 0:00:22]} 28. Kg2 {[%clk 0:01:23.1]} 28... Kf6 {[%clk 0:00:23.3]} 29. Be4
{[%clk 0:01:18.5]} 29... Bd7 {[%clk 0:00:19.5]} 30. Kf3 {[%clk 0:01:19.5]} 30...
Bg4+ {[%clk 0:00:20.5]} 31. Kxe3 {[%clk 0:01:20.6]} 31... Nd7 {[%clk 0:00:19.3]}
32. Bxc6 {[%clk 0:01:21.6]} 32... Nf8 {[%clk 0:00:21.2]} 33. Nd4 {[%clk
0:01:20.4]} 1-0

[Event "*** Qualifier 2: Titled Tuesday 3|2 Blitz"]
[Site "Chess.com"]
[Date "2017.04.11"]
[Round "5"]
[White "Goala"]
[Black "justantan"]
[Result "0-1"]
[WhiteElo "2318"]
[BlackElo "2255"]
[TimeControl "180+2"]
[EndTime "14:04:06 PDT"]
[Termination "justantan won by checkmate"]

1. d4 {[%clk 0:03:02]} 1... Nf6 {[%clk 0:02:59.9]} 2. c4 {[%clk 0:03:02.5]} 2...
e6 {[%clk 0:03:01]} 3. Nf3 {[%clk 0:03:03.9]} 3... d5 {[%clk 0:03:01.1]} 4. e3
{[%clk 0:03:04.7]} 4... Be7 {[%clk 0:03:01.8]} 5. Qc2 {[%clk 0:03:05.9]} 5...
O-O {[%clk 0:03:03.4]} 6. b3 {[%clk 0:03:06.6]} 6... b6 {[%clk 0:03:04.3]} 7.
Bd3 {[%clk 0:03:07.4]} 7... c5 {[%clk 0:03:03.7]} 8. Nc3 {[%clk 0:03:06.6]} 8...
Nc6 {[%clk 0:03:03.4]} 9. a3 {[%clk 0:02:59.8]} 9... dxc4 {[%clk 0:03:02.6]} 10.
bxc4 {[%clk 0:02:53.5]} 10... cxd4 {[%clk 0:03:02.7]} 11. exd4 {[%clk
0:02:54.5]} 11... Nxd4 {[%clk 0:03:03.8]} 12. Nxd4 {[%clk 0:02:55.6]} 12... Qxd4
{[%clk 0:03:05.7]} 13. Bb2 {[%clk 0:02:55.5]} 13... Qg4 {[%clk 0:02:51.5]} 14.
O-O {[%clk 0:02:42.7]} 14... Bb7 {[%clk 0:02:51.2]} 15. f3 {[%clk 0:02:43.8]}
15... Qh5 {[%clk 0:02:52.2]} 16. Rad1 {[%clk 0:02:34]} 16... Rfd8 {[%clk
0:02:52.9]} 17. Rfe1 {[%clk 0:02:32.1]} 17... Rac8 {[%clk 0:02:47.5]} 18. Qe2
{[%clk 0:02:18.6]} 18... Bd6 {[%clk 0:02:37.1]} 19. h3 {[%clk 0:02:14.1]} 19...
Qh4 {[%clk 0:02:35.6]} 20. Nb5 {[%clk 0:02:11.8]} 20... Bc5+ {[%clk 0:02:34.2]}
21. Kh1 {[%clk 0:01:57.9]} 21... Nh5 {[%clk 0:02:34.1]} 22. Be5 {[%clk
0:01:49.3]} 22... a6 {[%clk 0:02:28.3]} 23. Nc3 {[%clk 0:01:36.7]} 23... Bd4
{[%clk 0:02:28.3]} 24. Nb1 {[%clk 0:01:00.4]} 24... Rc5 {[%clk 0:02:26.5]} 25.
Bh2 {[%clk 0:00:50.1]} 25... Bf2 {[%clk 0:02:09]} 26. Rf1 {[%clk 0:00:47.5]}
26... Bg3 {[%clk 0:02:09.7]} 27. Nc3 {[%clk 0:00:30.1]} 27... Bxh2 {[%clk
0:01:52.8]} 28. Kxh2 {[%clk 0:00:32]} 28... Qg3+ {[%clk 0:01:54.4]} 29. Kg1
{[%clk 0:00:18.7]} 29... Nf4 {[%clk 0:01:53]} 30. Bxh7+ {[%clk 0:00:06.8]} 30...
Kxh7 {[%clk 0:01:50.7]} 31. Qc2+ {[%clk 0:00:08.4]} 31... g6 {[%clk 0:01:48.8]}
32. Rxd8 {[%clk 0:00:09.9]} 32... Nxh3+ {[%clk 0:01:49.8]} 33. Kh1 {[%clk
0:00:11.5]} 33... Rh5 {[%clk 0:01:47.3]} 34. Ne4 {[%clk 0:00:10.6]} 34... Nf2+
{[%clk 0:01:46]} 35. Kg1 {[%clk 0:00:11.8]} 35... Rh1# {[%clk 0:01:47.5]} 0-1

[Event "*** Qualifier 2: Titled Tuesday 3|2 Blitz"]
[Site "Chess.com"]
[Date "2017.04.11"]
[Round "5"]
[White "XDPS"]
[Black "GM_Splinter"]
[Result "1-0"]
[WhiteElo "2570"]
[BlackElo "2360"]
[TimeControl "180+2"]
[EndTime "14:04:12 PDT"]
[Termination "XDPS won by resignation"]

1. d4 {[%clk 0:03:02]} 1... f5 {[%clk 0:03:00.6]} 2. g3 {[%clk 0:03:01]} 2...
Nf6 {[%clk 0:03:01.3]} 3. Bg2 {[%clk 0:03:02.6]} 3... g6 {[%clk 0:03:02.8]} 4.
Nh3 {[%clk 0:03:04.2]} 4... Bg7 {[%clk 0:03:04.5]} 5. O-O {[%clk 0:03:05.9]}
5... O-O {[%clk 0:03:04.6]} 6. c4 {[%clk 0:03:06.8]} 6... Nc6 {[%clk 0:02:59]}
7. Nc3 {[%clk 0:03:03.5]} 7... d6 {[%clk 0:02:51.7]} 8. d5 {[%clk 0:02:49.9]}
8... Ne5 {[%clk 0:02:51.3]} 9. b3 {[%clk 0:02:50.9]} 9... c6 {[%clk 0:02:25.9]}
10. Bb2 {[%clk 0:02:46.9]} 10... Bd7 {[%clk 0:02:17.8]} 11. Rc1 {[%clk
0:02:43.4]} 11... Qe8 {[%clk 0:02:06.8]} 12. Re1 {[%clk 0:02:42.3]} 12... Nh5
{[%clk 0:01:59.3]} 13. e3 {[%clk 0:02:41.3]} 13... h6 {[%clk 0:01:51.3]} 14. Nf4
{[%clk 0:02:40.9]} 14... Nf6 {[%clk 0:01:47.5]} 15. Ba3 {[%clk 0:02:24.7]} 15...
g5 {[%clk 0:01:42.8]} 16. Nfe2 {[%clk 0:02:21.9]} 16... c5 {[%clk 0:01:36.2]}
17. Bb2 {[%clk 0:02:20.4]} 17... Qh5 {[%clk 0:01:31.8]} 18. Rc2 {[%clk
0:01:51.8]} 18... Nf3+ {[%clk 0:01:27.4]} 19. Bxf3 {[%clk 0:01:52.5]} 19... Qxf3
{[%clk 0:01:29.3]} 20. Nc1 {[%clk 0:01:53.8]} 20... Qxd1 {[%clk 0:01:27.5]} 21.
Rxd1 {[%clk 0:01:54.6]} 21... f4 {[%clk 0:01:26]} 22. exf4 {[%clk 0:01:53.8]}
22... gxf4 {[%clk 0:01:26.8]} 23. N3e2 {[%clk 0:01:53.9]} 23... fxg3 {[%clk
0:01:20.8]} 24. hxg3 {[%clk 0:01:52.6]} 24... Bf5 {[%clk 0:01:10]} 25. Rcd2
{[%clk 0:01:44.6]} 25... Ne4 {[%clk 0:01:10.2]} 26. Bxg7 {[%clk 0:01:46.2]}
26... Kxg7 {[%clk 0:01:05.1]} 27. Rb2 {[%clk 0:01:47]} 27... Bg4 {[%clk
0:00:58.8]} 28. Nd3 {[%clk 0:01:47.7]} 28... Rf7 {[%clk 0:00:49.6]} 29. Ndf4
{[%clk 0:01:45]} 29... Rxf4 {[%clk 0:00:35.1]} 30. gxf4 {[%clk 0:01:45.7]} 30...
Kf6 {[%clk 0:00:36.7]} 31. Re1 {[%clk 0:01:45.5]} 31... Rg8 {[%clk 0:00:25.5]}
32. Ng3 {[%clk 0:01:44.9]} 32... Bf3 {[%clk 0:00:25.4]} 33. Kh2 {[%clk
0:01:42.1]} 33... Rg4 {[%clk 0:00:15.1]} 34. Nxe4+ {[%clk 0:01:32.5]} 1-0

[Event "*** Qualifier 2: Titled Tuesday 3|2 Blitz"]
[Site "Chess.com"]
[Date "2017.04.11"]
[Round "5"]
[White "Bigfish1995"]
[Black "Marcus_Harvey"]
[Result "0-1"]
[WhiteElo "2643"]
[BlackElo "2523"]
[TimeControl "180+2"]
[EndTime "14:04:14 PDT"]
[Termination "Marcus_Harvey won by resignation"]

1. e4 {[%clk 0:03:02]} 1... e6 {[%clk 0:03:01.3]} 2. d4 {[%clk 0:03:02.2]} 2...
d5 {[%clk 0:03:02.5]} 3. Nc3 {[%clk 0:03:03.3]} 3... Nf6 {[%clk 0:03:03.8]} 4.
e5 {[%clk 0:03:02.5]} 4... Nfd7 {[%clk 0:03:04.5]} 5. Nce2 {[%clk 0:03:03.8]}
5... c5 {[%clk 0:03:05.8]} 6. c3 {[%clk 0:03:05.1]} 6... Nc6 {[%clk 0:03:07.2]}
7. f4 {[%clk 0:03:06.2]} 7... b5 {[%clk 0:03:08.4]} 8. Nf3 {[%clk 0:03:03]} 8...
Qb6 {[%clk 0:03:09.5]} 9. Ng3 {[%clk 0:02:59]} 9... g6 {[%clk 0:03:09.2]} 10.
Be3 {[%clk 0:02:58.5]} 10... a5 {[%clk 0:03:07.5]} 11. Be2 {[%clk 0:02:56.9]}
11... b4 {[%clk 0:03:02.9]} 12. O-O {[%clk 0:02:57.9]} 12... Ba6 {[%clk
0:03:02.5]} 13. Bxa6 {[%clk 0:02:42.3]} 13... Qxa6 {[%clk 0:03:03]} 14. cxb4
{[%clk 0:02:34.1]} 14... axb4 {[%clk 0:02:39.9]} 15. a3 {[%clk 0:02:34]} 15...
c4 {[%clk 0:02:30.6]} 16. axb4 {[%clk 0:02:33.2]} 16... Qxa1 {[%clk 0:02:31.7]}
17. Qxa1 {[%clk 0:02:34.1]} 17... Rxa1 {[%clk 0:02:33.3]} 18. Rxa1 {[%clk
0:02:35.1]} 18... Bxb4 {[%clk 0:02:31.5]} 19. Ra8+ {[%clk 0:02:35.1]} 19... Ncb8
{[%clk 0:02:25.4]} 20. Ne2 {[%clk 0:02:25.1]} 20... O-O {[%clk 0:02:23.9]} 21.
g4 {[%clk 0:02:11.3]} 21... Rc8 {[%clk 0:02:22.8]} 22. f5 {[%clk 0:02:11.4]}
22... gxf5 {[%clk 0:02:21.7]} 23. gxf5 {[%clk 0:02:12.3]} 23... Nb6 {[%clk
0:02:18.9]} 24. Ra1 {[%clk 0:02:07.3]} 24... exf5 {[%clk 0:02:16.6]} 25. Kf2
{[%clk 0:02:07.1]} 25... Kf8 {[%clk 0:02:10.7]} 26. Nh4 {[%clk 0:02:01.3]} 26...
f4 {[%clk 0:01:56.4]} 27. Nxf4 {[%clk 0:02:00.9]} 27... c3 {[%clk 0:01:57.2]}
28. bxc3 {[%clk 0:02:01.9]} 28... Bxc3 {[%clk 0:01:58.6]} 29. Nf5 {[%clk
0:02:01.8]} 29... Bxa1 {[%clk 0:01:55.7]} 30. Nh5 {[%clk 0:02:00.6]} 30... Rc2+
{[%clk 0:01:51.6]} 31. Kg1 {[%clk 0:01:58.8]} 31... Ke8 {[%clk 0:01:39.5]} 32.
Nd6+ {[%clk 0:01:49.3]} 32... Kd7 {[%clk 0:01:35.8]} 33. Nxf7 {[%clk 0:01:44.5]}
33... Nc4 {[%clk 0:01:30.8]} 34. Bf2 {[%clk 0:01:31.7]} 34... Nc6 {[%clk
0:01:21.9]} 35. Nf6+ {[%clk 0:01:29.6]} 35... Ke7 {[%clk 0:01:22.3]} 36. Ng5
{[%clk 0:01:29.2]} 36... Bxd4 {[%clk 0:01:17.5]} 37. Nxd5+ {[%clk 0:01:29.1]}
37... Ke8 {[%clk 0:01:15.7]} 38. Nc7+ {[%clk 0:01:24.5]} 38... Kd7 {[%clk
0:01:15]} 0-1

[Event "*** Qualifier 2: Titled Tuesday 3|2 Blitz"]
[Site "Chess.com"]
[Date "2017.04.11"]
[Round "5"]
[White "joppie2"]
[Black "Alex_Molchanov"]
[Result "0-1"]
[WhiteElo "2530"]
[BlackElo "2417"]
[TimeControl "180+2"]
[EndTime "14:04:20 PDT"]
[Termination "Alex_Molchanov won by resignation"]

1. e4 {[%clk 0:03:02]} 1... c6 {[%clk 0:02:59.8]} 2. d4 {[%clk 0:03:02.8]} 2...
d5 {[%clk 0:03:01.7]} 3. e5 {[%clk 0:03:02.1]} 3... Bf5 {[%clk 0:03:02.2]} 4.
Nf3 {[%clk 0:03:01.3]} 4... e6 {[%clk 0:03:02.9]} 5. Be2 {[%clk 0:03:02.7]} 5...
Ne7 {[%clk 0:03:03]} 6. O-O {[%clk 0:03:03.7]} 6... h6 {[%clk 0:03:04.4]} 7. Re1
{[%clk 0:03:04.8]} 7... Bg6 {[%clk 0:03:03.3]} 8. c3 {[%clk 0:03:06.4]} 8... Nd7
{[%clk 0:03:04.2]} 9. Nbd2 {[%clk 0:03:07.1]} 9... Nf5 {[%clk 0:03:05.1]} 10. a4
{[%clk 0:03:07.2]} 10... Be7 {[%clk 0:03:04.3]} 11. a5 {[%clk 0:03:07.8]} 11...
O-O {[%clk 0:03:05.9]} 12. b4 {[%clk 0:03:09.3]} 12... b6 {[%clk 0:02:51.9]} 13.
Nf1 {[%clk 0:03:04]} 13... c5 {[%clk 0:02:48.9]} 14. bxc5 {[%clk 0:02:59.7]}
14... bxc5 {[%clk 0:02:48.8]} 15. Ba3 {[%clk 0:02:56.5]} 15... Qxa5 {[%clk
0:02:29.4]} 16. Bxc5 {[%clk 0:02:56.3]} 16... Qd8 {[%clk 0:02:30.4]} 17. Bxa7
{[%clk 0:02:55.3]} 17... Qc7 {[%clk 0:02:26.3]} 18. Qa4 {[%clk 0:02:56]} 18...
Rfc8 {[%clk 0:02:00.9]} 19. Reb1 {[%clk 0:02:55.2]} 19... Nxd4 {[%clk
0:01:26.9]} 20. Nxd4 {[%clk 0:02:32.6]} 20... Bxb1 {[%clk 0:01:20.8]} 21. Nb5
{[%clk 0:02:33.7]} 21... Qxe5 {[%clk 0:00:46.6]} 22. Rxb1 {[%clk 0:02:33.2]}
22... Qxe2 {[%clk 0:00:47.3]} 23. Ne3 {[%clk 0:02:29.8]} 23... Nc5 {[%clk
0:00:44.2]} 24. Qa1 {[%clk 0:02:25.1]} 24... Ne4 {[%clk 0:00:40.1]} 25. Rb2
{[%clk 0:02:25.9]} 25... Qd3 {[%clk 0:00:30.8]} 26. Ra2 {[%clk 0:02:22.6]} 26...
Qxb5 {[%clk 0:00:30.5]} 27. Ra5 {[%clk 0:02:09.3]} 27... Qe2 {[%clk 0:00:25.9]}
28. Ra2 {[%clk 0:02:10]} 28... Qb5 {[%clk 0:00:26.4]} 29. Ra5 {[%clk 0:02:11]}
29... Qb7 {[%clk 0:00:27.5]} 30. h3 {[%clk 0:02:08.3]} 30... Bf6 {[%clk
0:00:28.1]} 31. Ra6 {[%clk 0:01:49.3]} 31... Nxc3 {[%clk 0:00:25.7]} 32. Qa5
{[%clk 0:01:48.7]} 32... Nb5 {[%clk 0:00:23.8]} 33. Rb6 {[%clk 0:01:49.6]} 33...
Qxa7 {[%clk 0:00:21.4]} 34. Qxb5 {[%clk 0:01:51.1]} 34... Be5 {[%clk 0:00:21.3]}
35. Rb7 {[%clk 0:01:51]} 35... Qa1+ {[%clk 0:00:21.8]} 36. Nf1 {[%clk
0:01:51.5]} 36... Qa6 {[%clk 0:00:19.8]} 37. Qd7 {[%clk 0:01:51.6]} 37... Rc1
{[%clk 0:00:19.4]} 38. Qxf7+ {[%clk 0:01:51.9]} 38... Kh8 {[%clk 0:00:20.9]} 0-1